bitfinex/quotes_ETHUSD_20250130
["timestamp","ask_amount","ask_price","bid_price","bid_amount"]
[1738243832097,3.97931183,3268.7,3267.7,0.03059586]
[1738243832287,3.05961,3268.4,3267.7,0.03059586]
[1738243832581,3.05961,3268.4,3266.7,0.306888]
[1738243832582,3.05992,3268.1,3266.9,0.03059773]
[1738243832784,3.05997,3268.0,3267.1,3.06081]
[1738243832995,3.06025,3267.7,3266.9,0.03059961]
[1738243833147,3.84538,3268.0,3266.8,3.06102]
[1738243833479,3.84538,3268.0,3265.2,3.06256]
[1738243833480,3.84538,3268.0,3266.9,3.09160451]
[1738243833690,3.06083,3267.1,3266.1,3.09234376]
[1738243833850,3.06064,3267.3,3266.4,3.06144]
[1738243834045,0.88170902,3267.9,3266.5,0.03060843]
[1738243834247,3.06065,3267.3,3266.5,0.03060843]
[1738243834483,3.06083,3267.1,3266.0,3.06176]
[1738243834683,3.06052,3267.5,3266.6,3.06123]
[1738243834989,3.06019,3267.8,3267.0,3.0609]
[1738243835157,3.06019,3267.8,3267.1,0.03060386]
[1738243835364,0.7854,3268.0,3267.1,0.03060386]
[1738243835671,3.06026,3267.7,3266.8,3.06109]
[1738243835851,0.03050311,3267.6,3265.9,0.03060451]
[1738243836051,3.7854,3268.0,3266.5,3.06129]
[1738243836052,3.06057,3267.4,3266.5,3.06129]
[1738243836251,3.06037,3267.6,3266.6,0.03060714]
[1738243836452,3.06037,3267.6,3266.7,3.06116]
[1738243836658,0.7854,3268.0,3266.8,0.03060713]
[1738243836863,0.58050311,3267.9,3266.5,3.06137]
[1738243837146,0.58050311,3267.9,3266.4,3.0614]
[1738243837147,3.06018,3267.8,3267.0,3.0609]
[1738243837381,3.06025,3267.7,3266.9,0.03060477]
[1738243837591,3.06053,3267.5,3266.6,3.06126]
[1738243837791,0.03050311,3267.4,3266.3,3.06153]
[1738243838000,0.58050311,3267.4,3265.8,3.233942]
[1738243838145,3.06081,3267.1,3265.8,0.20260143]
[1738243838500,0.35805031,3267.3,3265.8,0.20260143]
[1738243838501,3.06176,3266.1,3265.8,0.171992]
[1738243838990,3.06185,3266.0,3265.8,0.171992]
[1738243839201,3.06158,3266.3,3265.8,0.171992]
[1738243839490,3.06194,3265.9,3265.8,0.171992]
[1738243840966,3.06194,3265.9,3264.9,0.03062286]
[1738243840967,3.06266,3265.2,3264.9,0.03062357]
[1738243841186,3.0,3265.8,3264.5,0.03062707]
[1738243841374,0.55,3265.7,3264.5,0.03062707]
[1738243841574,3.06289,3264.9,3264.3,0.11622236]
[1738243842056,0.7758,3265.9,3264.3,0.11622236]
[1738243842057,0.7758,3265.9,3264.4,0.03062876]
[1738243842308,0.8042,3267.1,3264.6,0.4126]
[1738243842507,3.06209,3265.8,3265.0,3.06277]
[1738243842661,3.06209,3265.8,3265.1,0.03062127]
[1738243842862,3.06231,3265.5,3264.6,3.47575]
[1738243843100,3.06231,3265.5,3264.3,3.17964236]
[1738243843101,0.03050311,3265.4,3264.3,0.11622236]
[1738243843301,3.06287,3265.0,3264.4,0.03062869]
[1738243843474,3.06283,3265.0,3264.4,0.03062869]
[1738243843670,3.06283,3265.0,3264.3,0.11622236]
[1738243843671,3.06295,3264.9,3264.3,0.11622236]
[1738243843960,3.06308,3264.7,3264.3,0.11622236]
[1738243844184,3.06318,3264.6,3264.3,0.11622236]
[1738243844385,3.0,3264.8,3264.3,0.11622236]
[1738243845114,3.06156,3266.4,3264.3,0.11622236]
[1738243845296,3.06242,3265.4,3264.6,3.06308]
[1738243845610,3.06213,3265.7,3264.6,3.06308]
[1738243845611,3.0,3265.6,3264.9,3.06278]
[1738243845810,3.06213,3265.7,3264.7,0.03062412]
[1738243846014,3.06222,3265.6,3264.9,3.06286]
[1738243846218,3.06245,3265.4,3264.6,3.06312]
[1738243846372,3.06245,3265.4,3264.4,3.09396424]
[1738243846718,3.06298,3264.8,3264.3,0.11622236]
[1738243846912,3.06325,3264.6,3263.8,3.0639]
[1738243847118,3.06325,3264.6,3263.8,3.09453374]
[1738243847361,3.06323,3264.6,3263.8,0.03063374]
[1738243847534,0.03050311,3264.5,3263.4,3.0642]
[1738243847739,0.03050311,3264.5,3263.4,0.03063547]
[1738243847937,0.03050311,3264.5,3262.7,0.4126]
[1738243847938,3.0639,3263.9,3262.7,0.4126]
[1738243848153,3.361,3264.1,3263.5,3.06419]
[1738243848355,0.7677,3265.3,3263.6,0.03063741]
[1738243848506,0.7677,3265.3,3264.6,3.06315]
[1738243848711,3.0622,3265.7,3264.7,0.03062669]
[1738243849038,3.06222,3265.7,3265.0,3.06277]
[1738243849223,0.03050311,3265.8,3264.8,0.03062327]
[1738243849434,3.06223,3265.6,3264.6,0.0306246]
[1738243849732,3.06281,3265.0,3264.2,3.06345]
[1738243849936,3.06288,3264.9,3264.3,0.03062864]
[1738243850159,3.09348311,3264.8,3264.0,3.55861749]
[1738243850337,3.06326,3264.5,3264.0,0.49491749]
[1738243850957,3.0,3264.6,3264.0,0.49491749]
[1738243851353,3.0,3264.6,3263.9,3.09438353]
[1738243851541,3.0,3264.6,3264.1,0.03063354]
[1738243851870,3.06318,3264.6,3264.1,0.03063354]
[1738243852067,3.06264,3265.2,3264.1,0.34006789]
[1738243852068,3.06263,3265.2,3264.1,0.34006789]
[1738243852377,3.06263,3265.2,3263.3,0.4126]
[1738243852378,0.03050311,3265.7,3264.3,3.06343]
[1738243852553,0.03050311,3265.7,3263.6,0.03062735]
[1738243852554,3.06325,3264.5,3263.8,3.06384]
[1738243852754,3.06325,3264.5,3263.6,3.09470735]
[1738243852755,0.03050311,3264.4,3263.6,0.49522013]
[1738243852956,3.06384,3263.9,3263.6,0.49522013]
[1738243853153,3.064,3263.7,3263.6,0.49522013]
[1738243853739,3.06345,3264.3,3263.6,0.49522013]
[1738243853940,2.427,3265.1,3263.7,3.09463835]
[1738243853941,0.356,3264.6,3263.7,3.09463835]
[1738243854157,3.06341,3264.4,3263.8,3.06389]
[1738243854333,3.06353,3264.2,3263.6,0.35594601]
[1738243854530,0.356,3264.6,3262.8,3.06478]
[1738243854531,3.064,3263.8,3263.1,3.06455]
[1738243854741,0.38650311,3264.6,3262.8,0.4126]
[1738243854742,3.0639,3263.9,3262.8,0.4126]
[1738243854942,0.03050311,3264.4,3263.0,3.06465]
[1738243855151,3.06431,3263.4,3262.8,3.06483]
[1738243855584,3.06431,3263.4,3262.5,3.06504]
[1738243855585,3.06431,3263.4,3262.7,3.06488]
[1738243855883,3.06439,3263.3,3262.7,3.06488]
[1738243856046,0.7726,3264.4,3262.8,0.44324362]
[1738243856242,3.06353,3264.2,3263.3,3.06437]
[1738243856549,3.06401,3263.7,3263.1,3.0645]
[1738243856752,0.03050311,3264.0,3262.9,3.06474]
[1738243856974,3.06426,3263.5,3262.8,0.4126]
[1738243857156,3.06426,3263.5,3262.9,3.06473]
[1738243857351,3.06438,3263.3,3262.8,0.347751]
[1738243857755,3.06415,3263.6,3262.9,3.06467]
[1738243857756,3.06417,3263.6,3262.9,3.06467]
[1738243857956,3.06433,3263.4,3262.8,0.347751]
[1738243858166,3.06433,3263.4,3262.3,3.50507191]
[1738243858368,3.06433,3263.4,3262.6,3.06497]
[1738243858580,3.06433,3263.4,3262.7,3.09550577]
[1738243858782,3.06406,3263.7,3263.0,3.0646]
[1738243858954,3.06406,3263.7,3263.1,0.03064228]
[1738243859163,3.0641,3263.6,3263.1,0.03064228]
[1738243859555,3.0639,3263.9,3262.3,0.03064231]
[1738243859867,3.06366,3264.1,3263.4,3.0642]
[1738243860195,3.06366,3264.1,3263.4,3.09483855]
[1738243860393,0.7882,3264.9,3263.5,0.03063856]
[1738243860597,2.427,3265.1,3263.5,0.03063856]
[1738243860970,2.427,3265.1,3264.5,3.06323]
[1738243861172,3.0628,3265.0,3264.3,0.03062662]
[1738243861371,2.427,3265.1,3264.3,0.03062662]
[1738243861557,0.7609,3266.6,3264.7,7.06477375]
[1738243861756,0.7609,3266.6,3265.6,3.0622]
[1738243861757,3.06138,3266.5,3265.6,3.0622]
[1738243861979,3.06188,3266.0,3265.4,3.0624]
[1738243862303,3.7609,3266.6,3265.4,3.0624]
[1738243862304,3.06166,3266.2,3265.5,3.0928579]
[1738243862504,3.7609,3266.6,3265.0,0.03061719]
[1738243862505,0.7609,3266.6,3265.0,0.03061719]
[1738243862809,2.428,3267.3,3265.9,3.06188]
[1738243863014,2.428,3267.3,3266.7,3.06112]
[1738243863158,2.428,3267.3,3266.1,3.06175]
[1738243863159,3.06099,3267.0,3266.1,3.06175]
[1738243863359,3.06099,3267.0,3266.3,3.06156]
[1738243863578,3.06109,3266.9,3266.4,0.306156]
[1738243863757,0.03050311,3267.1,3266.0,3.47438]
[1738243863964,3.0615,3266.4,3265.7,3.06212]
[1738243864163,3.0615,3266.4,3265.1,0.88192409]
[1738243864164,0.7628,3266.6,3265.1,0.88192409]
[1738243864359,3.06185,3266.0,3265.4,3.0624]
[1738243864564,3.06166,3266.2,3265.5,3.0623]
[1738243864761,3.8241,3266.6,3265.6,0.0306188]
[1738243864977,3.06082,3267.1,3266.4,3.06143]
[1738243865307,3.06085,3267.1,3266.4,3.0614]
[1738243865460,3.06103,3266.9,3266.2,3.06165]
[1738243865660,0.03050311,3267.2,3266.2,0.612349]
[1738243866063,2.428,3267.3,3266.3,3.09215948]
[1738243866216,2.428,3267.3,3266.5,3.06135]
[1738243866415,2.428,3267.3,3266.5,3.06132]
[1738243866580,2.428,3267.3,3266.3,0.03060603]
[1738243866581,3.06088,3267.1,3266.3,3.06147]
[1738243866781,3.06164,3266.3,3266.1,0.27560074]
[1738243866986,3.06166,3266.2,3266.1,0.27560074]
[1738243867418,3.06207,3265.8,3265.6,0.27560074]
[1738243867599,3.06213,3265.7,3265.6,0.27560074]
[1738243867987,3.06185,3266.0,3265.6,0.27560074]
[1738243868203,3.06187,3266.0,3265.6,0.27560074]
[1738243868406,0.03050311,3266.3,3265.6,0.27560074]
[1738243868575,0.7671,3266.6,3265.6,0.27560074]
[1738243868774,3.06111,3266.8,3265.7,0.4126]
[1738243868976,3.06079,3267.2,3266.4,3.0614]
[1738243869202,5.48863,3267.3,3266.5,3.09188856]
[1738243869385,2.428,3267.3,3266.2,3.06156]
[1738243869585,3.06074,3267.2,3266.3,3.06156]
[1738243869831,2.428,3267.3,3266.2,0.306156]
[1738243869832,3.06089,3267.1,3266.4,0.03061026]
[1738243870162,2.428,3267.3,3266.7,3.06113]
[1738243870374,0.03050311,3267.2,3266.3,0.27573874]
[1738243870663,3.06147,3266.4,3266.3,0.27573874]
[1738243871264,3.09197311,3266.4,3266.3,0.27573874]
[1738243871416,3.03050311,3266.4,3264.7,3.06362465]
[1738243871621,3.06195,3265.9,3265.1,3.06261]
[1738243871845,3.06216,3265.7,3265.2,0.03061986]
[1738243872165,3.0,3266.7,3265.2,0.03062121]
[1738243872318,3.06201,3265.9,3265.2,0.03062121]
[1738243872723,3.06201,3265.9,3265.2,3.09315121]
[1738243873068,3.0625,3265.3,3264.7,3.06362465]
[1738243873358,3.0625,3265.3,3264.6,0.4126]
[1738243873359,3.06233,3265.5,3264.8,3.09351488]
[1738243873599,0.7905,3265.9,3264.8,3.09351488]
[1738243873600,3.88303311,3265.9,3264.8,0.0510388]
[1738243873745,3.06155,3266.4,3264.8,0.08166565]
[1738243873746,3.06156,3266.3,3264.8,0.08166565]
[1738243873942,3.06181,3266.1,3265.4,3.06238]
[1738243874285,3.06193,3266.0,3265.2,3.06259]
[1738243874452,3.06193,3266.0,3265.3,3.09310942]
[1738243874794,3.06166,3266.2,3265.2,0.0510388]
[1738243874981,3.06214,3265.7,3265.2,0.0510388]
[1738243875182,0.03050311,3265.8,3265.2,0.0510388]
[1738243875395,3.0625,3265.3,3265.2,0.0510388]
[1738243875589,3.816,3265.3,3265.2,0.0510388]
[1738243875743,3.84650311,3265.3,3265.2,0.0510388]
[1738243875950,3.0625,3265.3,3265.2,0.0510388]
[1738243876349,0.7535,3265.9,3265.2,0.0510388]
[1738243876579,3.06233,3265.5,3265.2,0.0510388]
[1738243876784,3.06203,3265.8,3265.2,0.0510388]
[1738243877100,3.06247,3265.4,3265.2,0.0510388]
[1738243877246,3.0625,3265.3,3265.2,0.0510388]
[1738243878671,3.8486,3265.3,3265.2,0.0510388]
[1738243879496,3.0625,3265.3,3265.2,0.0510388]
[1738243880002,3.06247,3265.4,3265.2,0.0510388]
[1738243880498,3.0625,3265.3,3265.2,0.0510388]
[1738243881304,0.7989,3265.9,3265.2,0.0510388]
[1738243881514,0.805,3267.1,3265.2,0.0510388]
[1738243881802,3.06127,3266.7,3265.9,0.4126]
[1738243882111,0.03050311,3266.6,3265.5,3.06228]
[1738243882405,3.06188,3266.0,3265.3,3.47507]
[1738243882617,3.06188,3266.0,3265.4,3.06231]
[1738243882777,3.06124,3266.7,3265.3,1.12251468]
[1738243882778,3.06225,3265.6,3265.3,0.0510388]
[1738243883115,3.062,3265.9,3265.3,0.0510388]
[1738243883288,3.06232,3265.5,3265.3,0.0510388]
[1738243883671,3.06214,3265.7,3265.3,0.0510388]
[1738243883998,3.09273311,3265.6,3265.3,0.0510388]
[1738243884162,3.06241,3265.4,3265.3,0.0510388]
[1738243885946,0.34,3266.4,3265.3,0.0510388]
[1738243886242,3.06204,3265.8,3265.3,0.0510388]
[1738243886446,3.06164,3266.3,3265.7,3.06207]
[1738243886735,3.06112,3266.8,3266.1,3.06169]
[1738243886885,3.06112,3266.8,3266.2,3.06165]
[1738243887220,0.7696,3267.2,3265.7,3.1131588]
[1738243887221,3.06153,3266.4,3265.7,3.1131588]
[1738243887419,3.06145,3266.5,3265.8,3.06201]
[1738243887619,3.0612,3266.7,3266.1,3.06175]
[1738243887819,3.06145,3266.5,3265.8,0.70981568]
[1738243888021,3.06155,3266.4,3265.8,0.0510388]
[1738243888204,3.06136,3266.6,3265.9,0.0306159]
[1738243888410,3.06104,3266.9,3266.1,3.06174]
[1738243888587,3.0611,3266.8,3266.2,3.09221346]
[1738243888988,6.1217,3267.1,3266.2,0.03061346]
[1738243889245,3.06107,3266.9,3266.2,3.09224346]
[1738243889594,0.7696,3267.2,3266.2,0.08165226]
[1738243889791,3.06105,3266.9,3266.3,3.06153]
[1738243889995,3.06115,3266.8,3266.2,3.14329077]
[1738243890235,3.06105,3266.9,3266.2,3.1126788]
[1738243890442,0.03050311,3267.1,3266.2,0.0510388]
[1738243890740,3.06083,3267.1,3266.5,3.06132]
[1738243890894,3.06107,3266.9,3266.3,3.06156]
[1738243891098,3.0612,3266.7,3266.2,0.0510388]
[1738243891400,3.06143,3266.5,3266.2,0.0510388]
[1738243892139,0.03050311,3267.0,3266.2,0.0510388]
[1738243892296,3.06126,3266.7,3266.2,0.0510388]
[1738243892496,3.06136,3266.6,3266.2,0.0510388]
[1738243892814,3.06103,3266.9,3266.2,0.08165183]
[1738243893007,3.06103,3266.9,3266.2,0.0510388]
[1738243893439,3.06136,3266.6,3266.2,0.0510388]
[1738243893946,2.428,3267.3,3266.8,3.06105]
[1738243894246,4.51786093,3268.0,3267.3,3.06057]
[1738243894413,3.06015,3267.9,3267.3,3.06057]
[1738243894590,0.03050311,3267.8,3266.9,3.06093]
[1738243894791,3.06049,3267.5,3266.8,3.06101]
[1738243895011,0.03050311,3267.4,3266.5,0.0510388]
[1738243895251,3.06128,3266.6,3266.5,0.0510388]
[1738243895438,7.44608311,3266.6,3266.5,0.0510388]
[1738243895644,7.41558,3266.6,3266.5,0.0510388]
[1738243895949,6.86558,3266.6,3266.5,0.0510388]
[1738243896099,8.755174,3266.6,3266.5,0.0510388]
[1738243896294,8.755174,3266.6,3266.5,8.8e-06]
[1738243896528,8.755174,3266.6,3264.6,3.06308]
[1738243896529,3.0624,3265.5,3264.6,3.06308]
[1738243896730,0.03050311,3265.5,3264.3,0.4126]
[1738243896936,3.06259,3265.3,3264.5,3.09381061]
[1738243897149,3.06241,3265.4,3264.3,0.4126]
[1738243897150,3.09272311,3265.6,3264.8,3.06291]
[1738243897448,3.06205,3265.8,3265.1,3.06262]
[1738243897650,3.06204,3265.8,3265.2,0.03062197]
[1738243897799,3.06257,3265.3,3264.4,0.4306551]
[1738243897999,3.06242,3265.4,3264.8,3.06292]
[1738243898194,3.06232,3265.5,3264.8,3.06297]
[1738243898531,0.03050311,3265.9,3264.3,0.4126]
[1738243898532,3.0625,3265.3,3264.3,0.4126]
[1738243898730,3.06275,3265.1,3264.5,3.06324]
[1738243898917,3.06281,3265.0,3264.4,3.06326]
[1738243899449,3.0,3265.9,3264.5,0.03062923]
[1738243899743,3.06271,3265.1,3264.5,3.0632]
[1738243899942,3.06251,3265.3,3264.5,3.0632]
[1738243900249,3.06251,3265.3,3264.7,3.06297]
[1738243900549,3.06244,3265.4,3264.7,3.06306]
[1738243900855,3.06186,3266.0,3265.4,3.06233]
[1738243901002,3.0623,3265.6,3264.9,3.06288]
[1738243901198,3.06203,3265.8,3265.0,0.03062437]
[1738243901505,3.06186,3266.0,3265.2,3.06256]
[1738243901730,3.06186,3266.0,3265.4,3.06233]
[1738243901913,3.0619,3266.0,3265.4,3.06233]
[1738243902132,3.06201,3265.9,3265.2,3.09318108]
[1738243902332,3.0619,3266.0,3264.7,0.612629]
[1738243902333,0.03050311,3266.2,3265.0,3.06278]
[1738243902531,3.06187,3266.0,3265.1,3.06262]
[1738243902844,3.0621,3265.8,3265.1,3.06262]
[1738243903351,3.0621,3265.8,3265.0,3.06278]
[1738243903544,3.06161,3266.3,3264.8,3.06296]
[1738243903545,3.06254,3265.3,3264.8,3.06296]
[1738243904077,3.06161,3266.3,3263.6,7.07328375]
[1738243904078,0.60862447,3266.1,3265.5,3.06222]
[1738243904277,0.60862447,3266.1,3265.6,3.09283877]
[1738243904476,0.60862447,3266.1,3265.9,3.0619]
[1738243904682,0.7693,3267.0,3265.0,0.4126]
[1738243904683,0.03050311,3266.6,3265.0,0.4126]
[1738243904857,3.06186,3266.0,3265.4,3.06239]
[1738243905028,3.06186,3266.0,3265.2,3.06259]
[1738243905382,3.06231,3265.6,3265.0,0.4126]
[1738243905668,6.12418,3265.8,3265.2,3.06256]
[1738243906025,3.719478,3266.9,3265.8,3.06194]
[1738243906026,3.06153,3266.4,3265.8,3.06194]
[1738243906268,3.06129,3266.6,3265.9,3.06188]
[1738243906434,3.06155,3266.4,3265.8,3.06194]
[1738243906651,3.06155,3266.4,3265.2,0.347516]
[1738243906652,0.60102019,3266.8,3266.3,3.06154]
[1738243906839,3.06109,3266.9,3266.3,3.06154]
[1738243907042,3.06099,3267.0,3266.5,3.06136]
[1738243907279,3.06073,3267.2,3266.6,3.06128]
[1738243907477,3.06093,3267.0,3266.5,3.06136]
[1738243907683,3.06073,3267.2,3266.5,3.06131]
[1738243907983,3.88426,3267.4,3266.3,0.4126]
[1738243907984,0.03050311,3267.0,3266.3,0.4126]
[1738243908163,3.0614,3266.5,3265.8,3.06195]
[1738243908349,3.0614,3266.5,3265.9,3.06194]
[1738243908531,3.06179,3266.1,3265.5,3.06231]
[1738243908731,3.0616,3266.3,3265.6,3.06219]
[1738243908930,3.24565031,3267.0,3265.4,0.4126]
[1738243908931,3.06205,3265.8,3265.4,0.4126]
[1738243909139,3.06192,3266.0,3265.4,0.4126]
[1738243909347,3.06196,3265.9,3265.4,0.4126]
[1738243909548,3.06213,3265.7,3265.2,3.06253]
[1738243909774,3.06196,3265.9,3265.2,3.06253]
[1738243909982,0.03050311,3265.8,3265.0,3.47537]
[1738243910135,3.0622,3265.7,3265.1,3.06261]
[1738243910329,0.7566,3266.4,3265.0,3.50599305]
[1738243910330,0.7566,3266.4,3265.0,0.4126]
[1738243910535,3.06172,3266.2,3265.7,3.06209]
[1738243911086,3.81809,3266.4,3265.5,0.03061837]
[1738243911087,0.7566,3266.4,3265.5,0.03061837]
[1738243911250,3.0,3266.7,3265.8,6.12395]
[1738243911251,3.06144,3266.5,3265.8,6.12395]
[1738243911450,3.06144,3266.5,3265.8,3.06197]
[1738243911659,3.06155,3266.4,3265.8,3.06197]
[1738243911866,3.0614,3266.5,3265.8,3.06197]
[1738243912094,6.12287,3266.5,3265.8,3.06197]
[1738243912378,6.12287,3266.5,3265.6,3.06219]
[1738243912379,0.03050311,3266.4,3265.6,3.06219]
[1738243912680,3.06147,3266.4,3265.9,3.06193]
[1738243912885,3.0616,3266.3,3265.6,3.06219]
[1738243913035,3.06147,3266.4,3265.3,0.0075]
[1738243913374,1.1427,3267.4,3265.7,0.0075]
[1738243913544,3.06097,3267.0,3266.3,3.06152]
[1738243913744,5.4869,3267.1,3266.3,3.06152]
[1738243913933,3.06106,3266.9,3266.3,3.06152]
[1738243914679,5.48683,3267.1,3266.5,3.06137]
[1738243915085,2.426,3267.1,3266.6,0.03061135]
[1738243915239,3.06065,3267.3,3266.6,0.03061135]
[1738243915240,3.06073,3267.2,3266.7,3.06119]
[1738243915571,1.0953,3267.9,3266.6,0.4126]
[1738243915774,3.06038,3267.6,3266.8,3.06106]
[1738243915979,3.06065,3267.3,3266.8,3.06106]
[1738243916196,3.0603,3267.7,3267.1,3.06074]
[1738243916363,3.06037,3267.6,3267.0,3.06085]
[1738243916800,4.00171375,3268.3,3267.3,3.06057]
[1738243916968,3.06012,3267.9,3267.3,3.06057]
[1738243917163,3.06012,3267.9,3266.6,0.4126]
[1738243917164,0.40017138,3268.2,3267.4,0.03060284]
[1738243917378,3.05986,3268.2,3267.5,3.06037]
[1738243917576,1.41144395,3268.7,3267.5,0.4126]
[1738243917789,3.06004,3268.0,3267.5,0.4126]
[1738243917995,3.05998,3268.0,3267.5,0.4126]
[1738243918511,0.305998,3267.9,3267.2,0.03060175]
[1738243918672,3.0604,3267.6,3266.8,0.4126]
[1738243918869,3.06046,3267.5,3266.8,3.47364]
[1738243919084,3.366098,3267.9,3267.2,3.06063]
[1738243919269,3.366108,3267.9,3267.2,3.06069]
[1738243919478,3.06031,3267.7,3267.0,3.06084]
[1738243919679,3.06044,3267.5,3267.0,3.06084]
[1738243920088,3.06031,3267.7,3267.1,3.06081]
[1738243920320,3.06031,3267.7,3267.0,3.06084]
[1738243920321,3.06025,3267.7,3266.9,0.03060523]
[1738243920456,3.06101,3266.9,3266.3,3.47414]
[1738243920658,3.06101,3266.9,3265.4,3.06234]
[1738243920659,3.06158,3266.3,3265.8,3.47463]
[1738243920861,0.03050311,3266.6,3266.0,3.06184]
[1738243921073,0.55,3267.0,3266.0,3.06184]
[1738243921074,0.03050311,3266.9,3266.0,3.06184]
[1738243921272,3.06154,3266.4,3265.8,3.4746]
[1738243921476,3.06188,3266.0,3265.3,3.47507]
[1738243921726,3.06166,3266.2,3265.3,0.4126]
[1738243922012,3.06151,3266.4,3265.8,3.06197]
[1738243922360,3.06151,3266.4,3265.9,3.06192]
[1738243922561,0.8004,3267.8,3267.2,3.0607]
[1738243922812,3.06007,3267.9,3267.3,3.06056]
[1738243923023,0.80530311,3268.3,3266.9,0.4126]
[1738243923024,3.05993,3268.1,3267.4,3.06047]
[1738243923312,3.05932,3268.7,3267.6,3.06035]
[1738243923520,2.426,3268.9,3268.4,3.05953]
[1738243923818,3.08956311,3269.0,3268.2,3.05977]
[1738243924014,0.03050311,3268.9,3268.3,3.05968]
[1738243924175,0.03050311,3268.9,3267.9,0.4126]
[1738243924385,3.05953,3268.5,3268.0,3.05996]
[1738243924605,3.05956,3268.5,3267.9,0.4126]
[1738243924767,3.05935,3268.7,3268.0,3.0599]
[1738243924963,3.05952,3268.5,3267.9,3.47258]
[1738243925196,3.05953,3268.5,3267.8,0.03059694]
[1738243925381,0.611851,3268.7,3267.4,0.4126]
[1738243925382,3.05969,3268.3,3267.4,0.4126]
[1738243925718,0.03050311,3268.2,3267.4,0.4126]
[1738243925918,0.5575,3268.0,3266.9,3.061]
[1738243926117,0.5575,3268.0,3266.5,3.06135]
[1738243926118,3.06078,3267.2,3266.5,3.06135]
[1738243926349,3.06082,3267.1,3266.3,0.4126]
[1738243926522,0.8043,3267.1,3265.8,3.06203]
[1738243926686,0.8043,3267.7,3266.7,3.06118]
[1738243926881,3.06058,3267.4,3266.8,3.06106]
[1738243927280,3.06075,3267.2,3266.5,3.06135]
[1738243927782,3.06084,3267.1,3266.4,3.06146]
[1738243928137,7.06231375,3267.4,3266.1,3.06175]
[1738243928289,3.06075,3267.2,3266.5,3.0613]
[1738243928485,3.06095,3267.0,3266.3,3.06154]
[1738243928702,3.06111,3266.8,3266.3,3.06154]
[1738243929018,3.06168,3266.2,3265.7,0.4126]
[1738243929223,0.03050311,3266.1,3265.3,3.4751]
[1738243929399,3.06149,3266.4,3265.5,3.06231]
[1738243929604,3.06149,3266.4,3265.8,3.06196]
[1738243930363,0.8312,3266.7,3266.0,3.06182]
[1738243930505,3.06097,3267.0,3266.0,0.306182]
[1738243930700,3.06097,3267.0,3266.2,3.06159]
[1738243930701,0.03050311,3266.9,3266.2,3.06159]
[1738243931352,0.03050311,3266.9,3266.3,3.06154]
[1738243931653,3.06097,3267.0,3266.3,3.06154]
[1738243931806,3.09159311,3266.9,3266.3,3.06154]
[1738243932452,0.03050311,3266.8,3266.3,3.06154]
[1738243932652,3.06097,3267.0,3266.3,3.06154]
[1738243932804,3.06112,3266.8,3266.2,3.06165]
[1738243933170,3.06163,3266.3,3265.5,3.06225]
[1738243933452,0.692892,3267.0,3266.1,3.06172]
[1738243933776,0.692892,3267.0,3266.5,3.0613]
[1738243933925,3.06108,3266.9,3266.2,3.06157]
[1738243934125,3.09158311,3266.9,3266.2,3.076727]
[1738243934560,3.06129,3266.6,3266.2,0.015157]
[1738243934874,0.33663211,3266.5,3266.2,0.015157]
[1738243935036,3.09198311,3266.4,3266.2,0.015157]
[1738243935205,3.06156,3266.3,3266.2,0.015157]
[1738243935403,3.06126,3266.7,3266.2,0.015157]
[1738243935609,3.06138,3266.5,3266.2,0.015157]
[1738243935806,3.06093,3267.0,3266.3,3.0615]
[1738243936006,3.09158311,3266.9,3266.3,3.06149]
[1738243936267,3.06108,3266.9,3266.3,3.076647]
[1738243936752,3.06087,3267.1,3266.5,3.06136]
[1738243936955,3.06047,3267.5,3266.4,0.03061302]
[1738243937161,3.06047,3267.5,3266.4,0.015157]
[1738243937162,3.06068,3267.3,3266.4,0.015157]
[1738243937338,3.06124,3266.7,3266.4,0.015157]
[1738243937656,3.06128,3266.6,3266.4,0.015157]
[1738243937963,3.06138,3266.5,3266.4,0.015157]
[1738243938166,0.69419231,3266.5,3266.4,0.015157]
[1738243938364,3.06138,3266.5,3266.4,0.015157]
[1738243938511,3.61888,3266.5,3266.4,0.015157]
[1738243938844,6.61888,3266.5,3266.4,0.015157]
[1738243939227,3.06138,3266.5,3266.4,0.015157]
[1738243939411,3.06112,3266.8,3266.4,0.015157]
[1738243939808,3.06138,3266.5,3266.4,0.015157]
[1738243940112,3.09170311,3266.7,3266.4,0.015157]
[1738243940346,3.06104,3266.9,3266.4,0.015157]
[1738243940747,0.7698,3267.1,3266.4,0.015157]
[1738243940910,3.06055,3267.4,3266.5,3.06138]
[1738243941258,3.06055,3267.4,3266.4,0.04577027]
[1738243941259,0.7696,3267.6,3266.4,0.015157]
[1738243941490,3.06087,3267.1,3266.4,0.015157]
[1738243941792,0.03050311,3267.0,3266.4,0.015157]
[1738243941960,0.7696,3267.6,3266.4,0.015157]
[1738243941961,0.03050311,3267.4,3266.4,0.015157]
[1738243942154,3.06076,3267.2,3266.4,0.015157]
[1738243942355,6.12117,3267.4,3266.6,3.06122]
[1738243942557,1.0766,3267.6,3266.9,3.06095]
[1738243942558,3.82999,3267.6,3266.9,3.06095]
[1738243942757,3.82999,3267.6,3266.7,3.06114]
[1738243942959,3.82999,3267.6,3266.8,3.06105]
[1738243942960,3.06044,3267.5,3266.8,3.06105]
[1738243943360,0.7696,3267.6,3266.6,0.03060925]
[1738243943580,0.7696,3267.6,3267.0,3.06091]
[1738243943901,0.7696,3267.6,3266.6,0.03060925]
[1738243943902,3.06056,3267.4,3266.8,3.06102]
[1738243944105,0.03050311,3267.3,3266.4,0.015157]
[1738243944249,3.06096,3267.0,3266.4,0.015157]
[1738243944597,0.03050311,3266.9,3266.4,0.015157]
[1738243945475,0.55,3267.5,3266.4,0.015157]
[1738243945476,0.03050311,3267.0,3266.4,0.015157]
[1738243945679,3.06135,3266.6,3266.4,0.015157]